bitfinex/quotes_ETHUSD_20220201
["timestamp","ask_amount","ask_price","bid_price","bid_amount"]
[1643717536486,0.1804,2769.1,2768.5,0.01]
[1643717536684,0.1804,2769.1,2768.6,0.33101393]
[1643717536685,0.43217058,2769.0,2768.6,0.33101393]
[1643717536884,0.43217058,2769.0,2768.5,0.01]
[1643717536885,0.1804,2768.9,2768.5,0.01]
[1643717537582,0.77582964,2768.7,2768.5,0.01]
[1643717537982,0.77582964,2768.7,2768.3,2.13191321]
[1643717538384,0.77582964,2768.7,2768.3,2.43191321]
[1643717539186,0.1804,2768.9,2768.3,2.43191321]
[1643717540228,0.8599338,2768.8,2768.3,2.43191321]
[1643717540430,0.3756602,2769.2,2768.3,2.43191321]
[1643717540632,0.3756602,2769.2,2768.3,6.33337965]
[1643717540832,0.3756602,2769.2,2768.3,4.23767271]
[1643717541030,0.3756602,2769.2,2768.5,0.9029129]
[1643717541230,0.3756602,2769.2,2769.1,0.38989163]
[1643717541434,1.16119115,2769.2,2769.1,0.38989163]
[1643717541633,1.16119115,2769.2,2768.5,3.1890229]
[1643717542230,1.16119115,2769.2,2768.7,1.80575]
[1643717542633,1.16119115,2769.2,2768.8,0.3]
[1643717543033,1.16119115,2769.2,2769.1,0.34215352]
[1643717543236,0.3756602,2769.2,2769.1,0.34215352]
[1643717543438,0.3756602,2769.2,2769.1,0.64215352]
[1643717543864,0.1952602,2769.2,2769.1,0.64215352]
[1643717547073,0.1952602,2769.2,2769.1,2.92289548]
[1643717547276,7.686,2769.7,2769.1,4.74389548]
[1643717547531,0.01081903,2770.0,2769.3,0.0279218]
[1643717547730,0.01081903,2770.0,2769.4,0.7014]
[1643717547935,1.13849033,2770.2,2769.8,0.9024228]
[1643717548129,1.52502371,2770.1,2769.9,1.28231573]
[1643717548332,1.52502371,2770.1,2769.9,1.58231573]
[1643717548830,1.13849033,2770.2,2769.9,1.58231573]
[1643717549029,2.44044427,2770.6,2769.9,1.58231573]
[1643717549231,2.44044427,2770.6,2770.0,0.90247]
[1643717549232,1.70542466,2770.5,2770.0,0.90247]
[1643717549431,1.52502466,2770.4,2770.0,0.90247]
[1643717549631,1.52502466,2770.4,2770.1,2.1047541]
[1643717550030,1.52502466,2770.3,2770.1,2.1047541]
[1643717550236,15.8684,2770.7,2770.1,2.1047541]
[1643717550432,1.52496072,2770.6,2770.2,1.80472]
[1643717550634,1.52496072,2770.6,2770.3,1.8046954]
[1643717551035,1.336,2770.9,2770.4,1.24276765]
[1643717551036,0.1804,2770.9,2770.4,1.24276765]
[1643717551278,8.03383077,2771.1,2770.4,3.84019243]
[1643717551279,1.52479437,2770.8,2770.4,3.84019243]
[1643717551480,0.67901047,2771.5,2770.4,4.54019243]
[1643717551681,2.02569777,2771.7,2770.5,1.80428]
[1643717551682,2.38418773,2771.4,2770.5,1.80428]
[1643717551882,1.52477726,2771.3,2770.6,1.8045]
[1643717552083,2.61788256,2771.2,2770.5,1.80428]
[1643717552384,1.52477726,2771.1,2770.4,0.3]
[1643717552680,0.1804,2771.0,2770.3,0.1804]
[1643717552885,1.52477726,2770.9,2770.5,1.80481]
[1643717553283,1.52477726,2770.9,2770.6,0.42414207]
[1643717553483,0.1804,2770.8,2770.5,1.80481]
[1643717553684,1.52477726,2770.7,2770.5,1.80481]
[1643717553884,0.1804,2770.6,2770.2,0.43819997]
[1643717554087,1.52477726,2770.5,2769.9,2.11483]
[1643717554284,1.52477726,2770.5,2769.9,2.10483]
[1643717554486,1.52477726,2770.4,2770.2,0.42037081]
[1643717554684,0.32803703,2770.6,2770.2,0.42037081]
[1643717554885,1.52502747,2770.5,2770.2,0.42037081]
[1643717555530,0.1804,2770.8,2770.2,0.42037081]
[1643717555824,1.52495132,2770.7,2770.2,1.32293081]
[1643717556025,0.1804,2770.6,2770.2,1.32293081]
[1643717556224,1.52495132,2770.5,2770.2,1.32293081]
[1643717556425,0.1804,2770.7,2770.2,1.32293081]
[1643717556625,1.52493834,2770.6,2770.2,1.32293081]
[1643717556826,1.52493834,2770.5,2770.2,1.32293081]
[1643717557025,0.1804,2770.8,2770.2,2.22530771]
[1643717557226,1.52486863,2770.7,2770.2,2.22530771]
[1643717557425,1.1801,2770.9,2770.2,2.22530771]
[1643717557625,1.52486029,2770.8,2770.7,0.33258263]
[1643717558228,1.52486029,2770.9,2770.7,0.33258263]
[1643717558426,1.52486029,2770.8,2770.7,0.33258263]
[1643717559269,1.52486029,2770.9,2770.7,0.33258263]
[1643717559568,1.52486029,2770.8,2770.7,0.33258263]
[1643717559770,1.52486029,2771.0,2770.7,0.33258263]
[1643717563118,1.84754581,2771.0,2770.7,0.33258263]
[1643717563325,5.9102,2771.1,2770.7,0.33258263]
[1643717563522,1.52476213,2771.0,2770.7,0.33258263]
[1643717564725,1.52476213,2771.0,2770.6,2.1046761]
[1643717565131,0.0124268,2770.7,2769.7,3.72560158]
[1643717565328,2.23494192,2770.9,2769.2,0.0127065]
[1643717565329,1.70516213,2770.6,2769.2,0.0127065]
[1643717565525,2.75791826,2770.5,2769.7,0.87366741]
[1643717565726,2.75791826,2770.5,2770.4,0.34621442]
[1643717565727,1.2329,2770.5,2770.4,0.34621442]
[1643717565931,5.8655,2770.8,2769.7,0.87366741]
[1643717566126,1.52495854,2770.7,2769.7,0.87366741]
[1643717566370,0.1804,2770.6,2769.7,0.87366741]
[1643717566571,0.1804,2770.6,2770.2,0.90246]
[1643717566774,0.1804,2770.7,2770.2,0.90246]
[1643717566975,5.8655,2770.8,2770.2,0.90246]
[1643717567172,6.7935,2770.9,2770.2,1.20246]
[1643717567773,6.7935,2770.9,2770.3,0.40400195]
[1643717568173,6.7435,2770.9,2770.4,0.90231]
[1643717568476,0.00999,2771.0,2770.6,1.2022329]
[1643717568673,0.00999,2771.0,2770.6,0.3]
[1643717568873,6.0906,2771.1,2770.6,0.3]
[1643717569273,8.53057438,2771.1,2770.5,0.3]
[1643717570126,8.53057438,2771.1,2770.7,0.90232]
[1643717570328,8.53057438,2771.1,2770.8,0.3]
[1643717570729,8.53057438,2771.1,2770.7,0.90232]
[1643717571828,8.53057438,2771.1,2770.6,2.10452]
[1643717572028,1.52480468,2771.0,2770.6,0.3]
[1643717572228,1.52480468,2771.0,2770.5,0.3]
[1643717572428,0.80845574,2770.7,2770.5,0.3]
[1643717572832,8.53057438,2771.1,2770.5,0.3]
[1643717573029,1.90504221,2771.0,2770.5,0.3]
[1643717573228,6.0906,2771.1,2770.5,0.3]
[1643717573429,1.52481379,2771.0,2770.5,0.3]
[1643717574074,2.29435248,2771.0,2770.6,0.90234]
[1643717574272,0.1804,2770.9,2770.6,0.90234]
[1643717574473,0.1804,2771.0,2770.6,0.90234]
[1643717578836,3.6833,2771.4,2771.1,0.3]
[1643717579034,4.41959586,2771.4,2771.1,0.3]
[1643717579236,4.41959586,2771.4,2771.0,1.80409]
[1643717579836,4.41959586,2771.4,2770.9,1.20216]
[1643717579837,1.52466626,2771.3,2770.9,1.20216]
[1643717580034,1.52466626,2771.3,2770.9,0.3]
[1643717580035,3.75033975,2771.3,2770.9,0.3]
[1643717580238,0.37703373,2770.7,2770.6,2.10446]
[1643717581136,0.37703373,2770.7,2770.6,1.80446]
[1643717581382,0.37703373,2770.7,2770.4,1.8046]
[1643717582379,0.75377866,2770.5,2770.4,1.8046]
[1643717583177,0.37703373,2770.7,2770.4,1.8046]
[1643717583983,0.1804,2771.1,2770.4,1.8046]
[1643717584180,1.52479754,2771.0,2770.4,1.8046]
[1643717584380,0.1804,2770.9,2770.5,0.3]
[1643717584580,0.00999,2771.2,2770.5,0.3]
[1643717585023,6.7547,2771.3,2770.5,0.3]
[1643717585226,1.934203,2771.2,2770.5,0.3]
[1643717585428,0.93155084,2770.9,2770.6,0.90219]
[1643717588131,0.93155084,2770.9,2770.6,1.80441]
[1643717588330,0.5899646,2771.2,2770.6,1.80441]
[1643717588531,1.52471851,2771.1,2770.6,1.80441]
[1643717588770,1.52318649,2771.1,2770.6,1.80441]
[1643717589579,0.76730271,2770.9,2770.6,1.80441]
[1643717589776,0.76730271,2770.9,2770.6,0.90219]
[1643717589976,0.76730271,2770.9,2770.5,0.3]
[1643717590178,0.5899646,2771.2,2770.5,0.90229]
[1643717590378,0.8899646,2771.2,2770.6,0.3]
[1643717590976,0.7095646,2771.2,2770.6,0.3]
[1643717591177,0.7095646,2771.2,2770.2,3.47684713]
[1643717591178,0.85814623,2770.9,2770.2,3.47684713]
[1643717591378,0.85814623,2770.9,2770.7,0.90221]
[1643717591578,0.7095646,2771.2,2770.7,0.90221]
[1643717591981,0.7095646,2771.2,2770.2,3.1045]
[1643717592183,2.21366612,2771.1,2770.1,3.61918]
[1643717592380,2.21366612,2771.1,2769.9,1.80471]
[1643717592381,2.39406612,2771.1,2769.9,1.80471]
[1643717593033,2.39406612,2771.1,2770.0,0.42922208]
[1643717593232,2.39406612,2771.1,2770.0,1.33162208]
[1643717593233,0.80491734,2770.6,2770.0,1.33162208]
[1643717593632,0.80491734,2770.6,2770.0,1.63162208]
[1643717593834,0.3728421,2770.3,2770.0,0.9024]
[1643717594037,0.3728421,2770.3,2769.9,1.80471]
[1643717594237,0.1804,2770.5,2769.9,1.80471]
[1643717594441,0.80491734,2770.6,2769.9,1.80471]
[1643717594638,0.1804,2770.5,2770.0,0.90241]
[1643717594936,1.10491734,2770.6,2770.0,0.90241]
[1643717595137,0.3,2770.6,2770.0,0.90235]
[1643717595336,1.1448,2770.9,2770.1,2.42996324]
[1643717595537,1.1448,2770.9,2770.1,4.23432324]
[1643717595737,1.1448,2770.9,2770.2,1.90235]
[1643717596374,1.1448,2770.9,2770.2,2.80453]
[1643717596577,1.1448,2770.9,2770.2,1.90218]
[1643717596978,0.79431468,2771.0,2770.2,1.90218]
[1643717597376,0.78432468,2771.0,2770.2,1.90218]
[1643717598176,1.14903476,2771.0,2770.4,0.9022]
[1643717598575,2.05182691,2770.9,2770.4,0.3]
[1643717598776,1.14903476,2771.0,2770.2,1.90218]
[1643717599378,1.14903476,2771.0,2770.3,0.90231]
[1643717599379,0.78432468,2771.0,2770.3,0.90231]
[1643717599683,0.1804,2771.1,2770.5,2.70646]
[1643717599881,0.00999,2771.3,2770.6,0.3]
[1643717600135,0.00999,2771.3,2770.6,1.3]
[1643717600336,0.1804,2771.6,2770.6,1.3]
[1643717600540,0.1804,2771.6,2771.4,1.25782786]
[1643717601139,0.1804,2771.6,2771.4,0.90201]
[1643717601541,0.1804,2771.6,2770.9,0.01]
[1643717601941,0.1804,2771.6,2770.8,3.00602]
[1643717602540,0.1804,2771.6,2771.3,0.36065401]
[1643717603340,0.1804,2771.6,2770.8,3.00602]
[1643717603783,0.1804,2771.6,2770.8,2.10394]
[1643717604185,0.1804,2771.6,2770.8,0.3]
[1643717604384,0.1804,2771.6,2770.6,2.20212]
[1643717604584,0.1804,2771.6,2770.6,1.3]
[1643717604785,2.61973414,2771.6,2770.2,1.80426]
[1643717604990,2.50618938,2771.5,2770.2,2.10426]
[1643717605185,0.1804,2771.4,2770.2,2.10426]
[1643717605586,0.37953926,2770.6,2770.3,0.36732435]
[1643717606185,0.37953926,2770.6,2770.3,1.26955435]
[1643717606386,0.18144814,2770.8,2770.3,1.26955435]
[1643717606785,0.62581269,2770.8,2770.3,0.90223]
[1643717606987,0.9115688,2771.9,2770.3,0.91509877]
[1643717607187,3.08239997,2772.3,2770.6,0.90219]
[1643717607188,2.43960182,2771.7,2770.6,0.90219]
[1643717607391,2.43960182,2771.7,2770.9,0.90211]
[1643717607630,2.43960182,2771.7,2770.9,1.20211]
[1643717607824,0.1804,2771.6,2770.8,0.1804]
[1643717608025,0.1804,2771.6,2770.9,0.83519051]
[1643717608026,1.27279193,2771.6,2770.9,0.83519051]
[1643717608227,1.27279193,2771.6,2770.8,0.1804]
[1643717608428,1.27279193,2771.6,2770.8,1.98447]
[1643717608630,1.26946389,2771.6,2770.8,1.98447]
[1643717608827,1.52446698,2771.5,2770.8,1.80407]
[1643717609027,1.82446698,2771.5,2770.8,2.15730065]
[1643717609232,1.52446698,2771.4,2770.9,0.71260043]
[1643717609430,1.52446698,2771.4,2771.0,0.90206]
[1643717609629,1.52446698,2771.4,2771.1,0.90205]
[1643717610630,1.52446698,2771.4,2771.0,0.31886864]
[1643717611133,1.52446698,2771.4,2771.0,1.22090864]
[1643717611377,1.52446698,2771.4,2771.0,0.31886864]
[1643717611779,1.97328399,2771.4,2771.0,0.31886864]
[1643717611978,1.52446698,2771.3,2771.0,0.31886864]
[1643717612177,0.3,2771.5,2771.1,0.90203]
[1643717612379,1.52443319,2771.4,2771.1,0.90203]
[1643717614381,1.52443319,2771.4,2770.8,3.78852]
[1643717614580,1.52443319,2771.4,2770.8,3.60812]
[1643717615441,0.44558638,2771.2,2770.8,3.99623812]
[1643717615638,0.44558638,2771.2,2770.7,0.1804]
[1643717615838,1.52454021,2771.1,2770.7,0.1804]
[1643717616039,1.52454021,2771.1,2770.6,1.80424]
[1643717616739,0.77183918,2770.9,2770.4,1.98477]
[1643717617044,1.07183918,2770.9,2770.4,0.1804]
[1643717617240,1.82467928,2770.8,2770.1,0.1804]
[1643717617438,0.3,2770.8,2770.1,1.08278]
[1643717617638,1.07183918,2770.9,2770.1,0.90238]
[1643717617838,1.52470802,2770.8,2770.4,0.336723]
[1643717618043,1.52470802,2770.8,2770.1,2.71375907]
[1643717618239,1.52470802,2770.8,2770.1,3.01375907]
[1643717618441,1.52470802,2770.8,2770.3,0.90231]
[1643717618893,0.3,2770.9,2770.3,0.90231]
[1643717619088,0.3,2770.9,2770.5,0.2952483]
[1643717619289,0.1804,2771.0,2770.5,0.2952483]
[1643717619490,1.5246304,2770.9,2770.5,0.2952483]
[1643717619988,1.8246304,2770.9,2770.5,1.1974883]
[1643717620188,0.3,2770.9,2770.5,0.90224]
[1643717620387,0.1804,2771.0,2770.2,1.80451]
[1643717620591,1.52463739,2770.9,2770.1,2.10447]
[1643717620789,1.82463739,2770.9,2770.1,2.10447]
[1643717620989,0.3,2770.9,2770.1,2.10447]
[1643717621188,0.4804,2771.0,2770.3,0.90238]
[1643717621392,0.4804,2771.0,2770.4,0.90224]
[1643717621393,1.52463953,2770.9,2770.4,0.90224]
[1643717621592,0.4804,2771.0,2770.5,0.3]
[1643717621788,0.1804,2771.0,2770.4,1.80448]
[1643717622190,0.1804,2771.0,2770.4,2.10448]
[1643717622389,0.1804,2771.0,2770.7,0.42293367]
[1643717624129,4.9117,2771.1,2770.7,0.42293367]
[1643717624328,4.9117,2771.1,2770.7,1.32518367]
[1643717624728,4.9117,2771.1,2770.7,3.12947367]
[1643717625128,4.9117,2771.1,2770.7,1.32518367]
[1643717625534,4.9117,2771.1,2770.7,0.90225]
[1643717625734,1.52457005,2771.0,2770.7,0.90225]
[1643717625932,5.65112475,2771.1,2770.7,0.90225]
[1643717626133,4.9117,2771.1,2770.7,0.90225]
[1643717626384,5.26509994,2771.1,2770.7,0.90225]
[1643717626585,5.26509994,2771.1,2770.7,1.80439]
[1643717627186,4.9117,2771.1,2770.7,1.80439]
[1643717628186,5.28279747,2771.1,2770.7,2.18970602]
[1643717628787,5.28279747,2771.1,2770.7,1.80439]
[1643717628988,5.28279747,2771.1,2770.5,1.9847]
[1643717628989,1.52455969,2771.0,2770.5,1.9847]
[1643717629190,1.52455969,2771.0,2770.3,0.1904]
[1643717629687,1.52455969,2771.0,2770.3,0.1804]
[1643717629688,3.67132625,2771.0,2770.3,0.1804]
[1643717629890,0.4209571,2770.5,2770.3,0.1804]
[1643717630130,2.52277031,2771.0,2770.0,1.08284]
[1643717630328,0.92288985,2770.6,2770.1,0.3]
[1643717630529,0.92288985,2770.6,2770.1,1.20239]
[1643717630729,0.92288985,2770.6,2770.1,0.3]
[1643717631036,0.92288985,2770.6,2770.0,0.1804]
[1643717631828,0.44646447,2770.2,2770.0,0.1804]
[1643717632232,0.85703761,2770.1,2770.0,0.1804]
[1643717632432,0.85703761,2770.1,2770.0,1.08286]
[1643717632632,0.85703761,2770.1,2770.0,0.1804]
[1643717633032,0.85703761,2770.1,2769.9,0.1804]
[1643717633232,0.85703761,2770.1,2769.1,0.37570822]
[1643717633233,0.32815417,2769.6,2769.1,0.37570822]
[1643717633436,1.1345,2770.1,2769.1,0.37570822]
[1643717633896,1.1345,2770.1,2769.3,1.80516]
[1643717634498,0.32984739,2769.6,2769.3,1.80516]
[1643717634698,0.32984739,2769.6,2769.4,0.3]
[1643717635102,0.32984739,2769.6,2769.3,0.3]
[1643717637006,0.92182619,2769.9,2769.3,0.90265]
[1643717638027,0.36137156,2769.6,2769.3,0.90265]
[1643717638230,0.36137156,2769.6,2769.3,1.20265]
[1643717638429,0.36137156,2769.6,2769.3,0.90265]
[1643717638832,0.92182619,2769.9,2769.3,0.90265]
[1643717639231,0.19039,2770.0,2769.3,3.14894339]
[1643717639633,0.1804,2770.0,2769.3,3.14894339]
[1643717640031,0.55700905,2770.0,2769.3,0.90265]
[1643717640232,0.93302843,2769.9,2769.3,0.90265]
[1643717640832,0.93302843,2769.9,2769.3,1.20265]
[1643717641036,0.93302843,2769.9,2769.6,0.32099084]
[1643717641268,0.93302843,2769.9,2769.3,1.20265]
[1643717641673,0.55700905,2770.0,2769.5,0.90259]
[1643717642470,0.55700905,2770.0,2769.5,1.24793507]
[1643717643978,0.55700905,2770.0,2769.5,0.90259]
[1643717645636,0.37660905,2770.0,2769.5,0.90259]
[1643717645837,0.37660905,2770.0,2769.5,0.90107973]
[1643717646337,0.71676157,2769.6,2769.3,0.90266]
[1643717647338,0.37660905,2770.0,2769.4,0.33165283]
[1643717649180,0.85283459,2769.8,2769.4,0.33165283]
[1643717649576,8.7986,2770.1,2769.5,3.16103048]
[1643717649774,9.0986,2770.1,2769.5,0.90259]
[1643717649978,9.0986,2770.1,2769.5,3.16654813]
[1643717650175,8.7986,2770.1,2769.5,3.11447489]
[1643717650377,8.7986,2770.1,2769.6,2.23079438]
[1643717650576,9.14958575,2770.1,2769.6,2.23079438]
[1643717650775,9.14958575,2770.1,2769.5,2.22118433]
[1643717650976,0.89303723,2770.2,2769.5,2.99920063]
[1643717651377,0.14818997,2770.4,2769.6,0.3]
[1643717651579,0.14818997,2770.4,2769.7,3.2754822]
[1643717651580,0.00999,2770.4,2769.7,3.2754822]
[1643717651782,8.9642,2770.7,2769.8,1.521]
[1643717652079,8.9642,2770.7,2770.5,0.42448687]
[1643717652277,5.0917,2770.7,2770.5,0.42448687]
[1643717653029,1.1613,2770.7,2770.2,0.90227]
[1643717653229,1.1613,2770.7,2770.2,1.80453]
[1643717655031,1.1613,2770.7,2770.3,0.35400629]
[1643717655233,1.1613,2770.7,2770.4,0.90232]
[1643717655432,5.4116,2770.8,2770.4,0.90232]
[1643717655633,0.94556797,2771.0,2770.8,0.37511077]
[1643717655936,1.52484859,2770.9,2770.3,1.197934]
[1643717656134,1.52484859,2770.9,2770.4,0.90231]
[1643717656380,2.00524859,2770.9,2770.4,0.90231]
[1643717656580,1.52484859,2770.8,2770.3,0.521]
[1643717657379,1.52484859,2770.8,2770.2,1.80453]
[1643717657579,1.95745977,2770.8,2770.4,0.32694609]
[1643717657782,1.52484859,2770.7,2770.4,0.32694609]
[1643717658783,1.52484859,2770.7,2770.4,1.22925609]
[1643717658984,0.4804,2770.9,2770.4,1.22925609]
[1643717659183,1.52489953,2770.8,2770.4,1.22925609]
[1643717660260,0.1804,2770.9,2770.4,1.52925609]
[1643717660462,5.86569,2771.1,2770.5,2.32531]
[1643717660662,1.52483834,2771.0,2770.5,2.32531]
[1643717661064,1.23380533,2770.8,2770.5,2.32531]
[1643717661863,1.23380533,2770.8,2770.4,0.90231]
[1643717662067,1.23380533,2770.8,2770.0,1.01]
[1643717662068,1.52490227,2770.7,2770.0,0.01]
[1643717662269,10.77812859,2770.7,2770.0,0.01]
[1643717662463,1.52490227,2770.6,2770.0,0.01]
[1643717662666,2.91930552,2770.5,2769.0,0.1826567]
[1643717662864,1.26635967,2769.6,2769.3,0.39301719]
[1643717663264,1.26635967,2769.6,2769.4,1.80508]
[1643717663667,0.91827013,2769.6,2769.4,1.80508]
[1643717663888,0.91827013,2769.6,2769.4,2.10508]
[1643717664592,0.91827013,2769.6,2769.2,2.8052]
[1643717664797,0.36972713,2769.5,2769.2,1.8052]
[1643717665196,3.65099597,2770.3,2769.2,3.00779]
[1643717665197,0.1804,2770.3,2769.2,3.00779]
[1643717665396,0.00999,2770.5,2769.5,0.01210666]
[1643717665599,0.00999,2770.5,2769.6,1.80471]
[1643717665797,1.2301,2770.6,2769.6,3.32571]
[1643717665998,1.2301,2770.6,2769.6,3.62571]
[1643717666297,1.5301,2770.6,2769.6,3.62571]
[1643717666499,0.81349787,2770.5,2770.2,0.40691942]
[1643717666698,0.81349787,2770.5,2770.3,0.90232]
[1643717667098,0.81349787,2770.5,2770.1,1.80464]
[1643717667934,0.99389787,2770.5,2770.1,1.80464]
[1643717668634,0.1804,2770.5,2770.1,1.80464]
[1643717669036,1.4151,2770.7,2770.1,1.80464]
[1643717669234,1.8249286,2770.6,2770.1,1.80464]
[1643717669435,1.4151,2770.7,2770.1,1.80464]
[1643717669635,1.52495704,2770.6,2770.1,1.80464]
[1643717669843,1.82495704,2770.6,2770.1,1.80464]
[1643717670036,0.3,2770.6,2770.1,1.80464]
[1643717670238,0.32085512,2770.2,2770.1,1.80464]
[1643717670435,0.7715756,2770.5,2769.9,1.80478]
[1643717670936,1.0715756,2770.5,2769.9,1.80478]
[1643717671384,0.7715756,2770.5,2769.9,2.10478]
[1643717671783,1.17472012,2770.5,2769.9,1.80478]
[1643717672390,1.52506886,2770.4,2769.9,1.80478]
[1643717673285,0.87326256,2770.0,2769.7,1.8049]
[1643717673487,0.87326256,2770.0,2769.6,0.01]
[1643717673689,0.87326256,2770.0,2769.3,1.0]
[1643717674086,0.87326256,2770.0,2769.1,1.805]
[1643717674491,0.84602614,2769.5,2768.8,1.02290981]
[1643717674692,0.84602614,2769.5,2769.0,0.3]
[1643717674898,0.84602614,2769.5,2768.8,1.3]
[1643717675143,0.84602614,2769.5,2768.9,0.9027]
[1643717675545,8.17453032,2770.2,2769.3,0.3890859]
[1643717675743,1.5253041,2770.1,2769.3,1.2917859]
[1643717675943,0.1804,2770.0,2769.3,1.2917859]
[1643717676143,1.5253041,2769.9,2769.3,1.2917859]
[1643717676343,1.8253041,2769.9,2769.3,1.2917859]
[1643717676643,0.71462336,2769.6,2769.3,1.2917859]
[1643717676845,0.71462336,2769.6,2769.3,0.9027]
[1643717677044,0.1804,2769.9,2769.3,1.80531]
[1643717677243,0.1804,2770.1,2769.5,0.90262]
[1643717677447,1.52525983,2770.0,2769.5,0.90262]
[1643717677845,0.44809086,2769.9,2769.5,0.90262]
[1643717678044,0.92319011,2769.6,2769.5,0.90262]
[1643717678901,0.91357297,2769.6,2769.5,0.90262]
[1643717679101,0.44809086,2769.9,2769.5,0.90262]
[1643717680108,0.44809086,2769.9,2769.5,1.33237438]
[1643717680505,0.69492036,2770.0,2769.5,1.33237438]
[1643717681607,0.69492036,2770.0,2769.5,0.90262]
[1643717682554,0.37628976,2769.7,2769.5,0.90262]
[1643717683441,0.69492036,2770.0,2769.5,0.90262]
[1643717683643,0.69492036,2770.0,2768.7,5.53688888]
[1643717683644,0.3,2769.7,2768.7,2.82899888]
[1643717683847,1.228,2769.8,2768.5,0.1804]
[1643717684042,1.5254172,2769.7,2768.5,0.1804]
[1643717684241,1.8254172,2769.7,2768.5,0.1804]
[1643717684442,1.8254172,2769.7,2768.5,0.88696492]
[1643717684443,0.3,2769.7,2768.5,0.88696492]
[1643717684648,0.3,2769.7,2769.1,0.37190523]
[1643717684649,0.33897494,2769.5,2769.1,0.37190523]
[1643717685047,5.0538,2769.8,2769.1,0.67190523]
[1643717685447,0.78187345,2769.6,2769.1,0.67190523]
[1643717685852,5.0538,2769.8,2769.2,1.80534]
[1643717686053,0.00999,2769.9,2769.2,1.42363]
[1643717686283,0.00999,2769.9,2769.6,0.32957192]
[1643717686489,0.35506331,2770.0,2769.6,0.32957192]
[1643717687089,0.95293042,2770.0,2769.6,0.32957192]
[1643717687289,0.95293042,2770.0,2769.7,0.90254]
[1643717687492,0.95293042,2770.0,2769.4,0.90254]
[1643717687689,0.95293042,2770.0,2769.4,1.20254]
[1643717688089,0.95293042,2770.0,2769.4,0.20254]
[1643717688289,0.95293042,2770.0,2769.8,0.43109468]
[1643717688491,9.75209,2770.2,2769.8,0.43109468]
[1643717688694,1.15249,2770.2,2769.8,0.43109468]
[1643717688891,1.1425,2770.2,2769.8,0.43109468]
[1643717689294,1.1425,2770.2,2769.8,0.73109468]
[1643717689491,1.1425,2770.2,2769.8,1.44307534]
[1643717689696,1.1425,2770.2,2769.8,1.63350468]
[1643717689892,1.1425,2770.2,2769.9,0.90248]
[1643717690939,1.1425,2770.2,2769.7,1.8049]
[1643717690940,0.74556398,2770.0,2769.7,1.8049]
[1643717691140,0.74556398,2770.0,2769.6,0.01]
[1643717691341,0.74556398,2770.0,2769.6,0.31]
[1643717691541,0.74556398,2770.0,2769.6,0.3]
[1643717691941,3.07496521,2770.0,2769.6,0.3]
[1643717692340,0.74556398,2770.0,2769.6,0.3]
[1643717693546,3.00378608,2770.0,2769.6,0.3]
[1643717694185,0.74556398,2770.0,2769.6,0.3]
[1643717695991,0.74556398,2770.0,2769.3,1.3]
[1643717696190,0.74556398,2770.0,2769.2,1.31]
[1643717696191,2.24221184,2769.9,2769.2,1.31]
[1643717696389,2.24221184,2769.9,2769.2,1.3]
[1643717696590,2.24221184,2769.9,2769.0,2.28569]
[1643717697192,0.40353803,2769.6,2769.2,0.40005008]
[1643717697389,0.92596398,2770.0,2769.2,1.30272008]
[1643717697630,0.92596398,2770.0,2769.2,1.60272008]
[1643717697833,0.74556398,2770.0,2769.2,0.70005008]
[1643717698230,0.74556398,2770.0,2769.2,0.40005008]
[1643717698434,0.74556398,2770.0,2769.7,0.37116156]
[1643717698835,0.1804,2769.9,2769.3,0.3]
[1643717699036,0.1804,2769.9,2769.1,2.2026]
[1643717699234,0.1804,2769.9,2769.4,0.90263]
[1643717699435,0.1804,2769.9,2769.1,1.3]
[1643717700138,0.1804,2769.9,2769.4,0.32349455]
[1643717701297,0.1804,2769.9,2769.2,0.90268]
[1643717701298,1.21820758,2769.5,2768.6,0.01]
[1643717701497,3.8637,2769.4,2768.6,0.01]
[1643717701695,0.1804,2769.3,2768.1,0.0022567]
[1643717701896,3.36449424,2769.3,2768.1,0.0022567]
[1643717702196,3.36449424,2769.3,2768.3,1.24362581]
[1643717702197,1.08339,2769.3,2768.3,1.24362581]
[1643717702595,0.1804,2769.3,2768.3,1.24362581]
[1643717703297,2.62650797,2769.3,2768.3,1.24362581]
[1643717703502,0.67747296,2768.8,2768.3,1.24362581]
[1643717703895,0.67747296,2768.8,2768.3,2.14655581]
[1643717704095,0.67747296,2768.8,2768.3,2.44655581]
[1643717705249,0.1804,2769.3,2768.4,1.80577]
[1643717705447,0.1804,2769.3,2768.5,0.90286]
[1643717705745,0.1804,2769.3,2768.8,1.20284]
[1643717706050,10.6321,2769.4,2768.8,1.20284]
[1643717706443,10.6321,2769.4,2768.9,0.41721055]
[1643717706648,5.2028,2769.4,2769.0,1.57720893]
[1643717706846,5.2028,2769.4,2769.1,1.20268]
[1643717707249,1.2494,2769.4,2769.1,2.20268]
[1643717709488,1.2494,2769.4,2769.2,0.1812672]
[1643717709688,0.00999,2769.5,2769.2,0.1812672]
[1643717710192,0.1804,2769.8,2769.2,0.1812672]
[1643717710394,0.1804,2769.8,2769.3,0.90266]
[1643717710595,0.1304,2769.8,2769.3,0.90266]
[1643717710795,0.40847023,2769.7,2769.4,0.41023434]
[1643717712095,1.3389115,2769.9,2769.4,0.41023434]
[1643717713340,0.34976539,2769.8,2769.4,0.41023434]
[1643717713742,0.34976539,2769.8,2769.2,1.0839172]
[1643717714239,0.34976539,2769.8,2769.3,0.90266]
[1643717714638,0.90369556,2769.4,2769.3,0.90266]
[1643717714838,0.90369556,2769.4,2769.1,1.0]
[1643717715040,0.90369556,2769.4,2769.1,0.3]
[1643717715340,0.90369556,2769.4,2769.0,1.3]
[1643717715738,0.90369556,2769.4,2769.0,0.3]
[1643717715938,0.43787922,2769.3,2769.0,0.35064242]
[1643717716138,1.2387,2769.7,2769.0,0.35064242]
[1643717716399,1.5387,2769.7,2769.1,0.90274]
[1643717716801,1.5387,2769.7,2769.1,1.20274]
[1643717717001,1.2387,2769.7,2769.1,2.10525]
[1643717717200,1.2387,2769.7,2769.5,0.33432384]
[1643717717401,1.2387,2769.7,2769.5,0.90261]
[1643717717602,1.2387,2769.7,2769.2,0.90266]
[1643717717801,1.2387,2769.7,2769.3,0.3]